lending/lending_fUSD_20250516
["ID","MTS","AMOUNT","RATE_DAILY","PERIOD"]
[361287862,1747425049123,-557.04,0.00016438,2]
[361287863,1747425049132,-1289.38,0.00016438,2]
[361287864,1747425049141,-400.0,0.00016438,2]
[361287865,1747425049151,-573.98,0.00016438,2]
[361287866,1747425049160,-400.0,0.00016438,2]
[361287867,1747425049173,-35744.473954,0.00016438,2]
[361287868,1747425049183,-400.0,0.00016438,2]
[361287869,1747425049192,-544.79,0.00016438,2]
[361287870,1747425049202,-708.28,0.00016438,2]
[361287871,1747425049212,-35744.473954,0.00016438,2]
[361287872,1747425049222,-35744.473954,0.00016438,2]
[361287873,1747425049231,-4640.021682,0.00016438,2]
[361287874,1747425049241,-2998.66,0.00016438,2]
[361287875,1747425049250,-35744.473954,0.00016438,2]
[361287876,1747425049260,-4640.021682,0.00016438,2]
[361287877,1747425049269,-13043.76,0.00016438,2]
[361287878,1747425049278,-4640.021682,0.00016438,2]
[361287879,1747425049288,-4640.021682,0.00016438,2]
[361287880,1747425049297,-400.0,0.00016438,2]
[361287881,1747425049306,-5035.44,0.00016438,2]
[361287882,1747425049316,-400.0,0.00016438,2]
[361287883,1747425049325,-400.0,0.00016438,2]
[361287884,1747425049335,-2234.44,0.00016438,2]
[361287885,1747425049347,-400.0,0.00016438,2]
[361287886,1747425049356,-400.0,0.00016438,2]
[361287887,1747425049366,-400.0,0.00016438,2]
[361287888,1747425049376,-400.0,0.00016438,2]
[361287889,1747425049385,-1596.56,0.00016438,2]
[361287890,1747425049395,-372.34,0.00016438,2]
[361287891,1747425049405,-400.0,0.00016438,2]
[361287892,1747425049415,-400.0,0.00016438,2]
[361287893,1747425049424,-1341.28,0.00016438,2]
[361287894,1747425049433,-944.72,0.00016438,2]
[361287895,1747425049443,-400.0,0.00016438,2]
[361287896,1747425049452,-400.0,0.00016438,2]
[361287897,1747425049462,-464.48360676,0.00016438,2]
[361287898,1747425049472,-400.0,0.00016438,2]
[361287899,1747425049482,-2399.69,0.00016438,2]
[361287900,1747425049491,-400.0,0.00016438,2]
[361287901,1747425049501,-418.02528515,0.00016438,2]
[361287902,1747425050212,-3027.397693,0.00015513,2]
[361287903,1747425050223,-3512.82471485,0.00016438,2]
[361287904,1747425050232,-365.1293787,0.00016438,2]
[361287905,1747425050244,-34.8706213,0.00016438,2]
[361287906,1747425050254,-1599.11,0.00016438,2]
[361287907,1747425050263,-113.01399781,0.00016438,2]
[361287908,1747425050274,-336.98600219,0.00016438,2]
[361287909,1747425050284,-400.0,0.00016438,2]
[361287910,1747425050293,-400.0,0.00016438,2]
[361287911,1747425050303,-1071.55,0.00016438,2]
[361287912,1747425050312,-400.0,0.00016438,2]
[361287913,1747425050321,-417.03262551,0.00016438,2]
[361287914,1747425050330,-400.0,0.00016438,2]
[361287915,1747425050339,-363.31976691,0.00016438,2]
[361287916,1747425050351,-423.57023309,0.00016438,2]
[361287917,1747425050360,-400.0,0.00016438,2]
[361287918,1747425050370,-500.0,0.00016438,2]
[361287919,1747425050379,-1005.71,0.00016438,2]
[361287920,1747425050388,-280.44038268,0.00016438,2]
[361287921,1747425050428,-219.55961732,0.00016438,2]
[361287922,1747425050437,-339.96870087,0.00016438,2]
[361287923,1747425050447,-364.34166181,0.00016438,2]
[361287924,1747425050459,-35.65833819,0.00016438,2]
[361287925,1747425050471,-1248.73,0.00016438,2]
[361287926,1747425050480,-3312.702248,0.00016438,2]
[361287927,1747425050489,-400.0,0.00016438,2]
[361287928,1747425050498,-1602.50941381,0.00016438,2]
[361287929,1747425050509,-583.83,0.00016438,2]
[361287930,1747425050568,-167.659,0.00016397,2]
[361287931,1747425050577,-1126.36283419,0.00016438,2]
[361287932,1747425050585,-356.76197848,0.00016438,2]
[361287933,1747425050597,-2402.50651583,0.00016438,2]
[361287934,1747425050608,-553.43375369,0.00016438,2]
[361287935,1747425050617,-400.0,0.00016438,2]
[361287936,1747425050626,-966.23,0.00016438,2]
[361287937,1747425050635,-1878.7565926,0.00016438,2]
[361287938,1747425050647,-752.63853883,0.00016438,2]
[361287939,1747425050658,-387.31414544,0.00016438,2]
[361287940,1747425050669,-293.99297113,0.00016438,2]
[361287941,1747425050678,-212.55021128,0.00016438,2]
[361287942,1747425050687,-400.0,0.00016438,2]
[361287943,1747425050697,-10.29488286,0.00016438,2]
[361287944,1747425062465,525.35,0.00013699,2]
[361287945,1747425072809,300.0,0.00024658,30]
[361287946,1747425861269,158.39,0.00021945,30]
[361287947,1747425904777,457.64,0.00013523,2]
[361287948,1747425931131,-632.4,0.00015616,2]
[361287949,1747425931152,-72.84521824,0.00015627,7]
[361287951,1747426118667,300.0,0.00024658,30]
[361287952,1747426189821,499.08,0.00013699,2]
[361287954,1747426231560,-150.0,0.00015396,7]
[361287955,1747426231570,-1000.0,0.00015396,2]
[361287956,1747426231580,-155.1682,0.000157,5]
[361287957,1747426231591,-244.8318,0.000157,5]
[361287958,1747426231601,-457.64,0.00015787,2]
[361287959,1747426231610,-800.0,0.000158,5]
[361287960,1747426231619,-1300.0,0.000159,5]
[361287961,1747426231628,-2275.87508459,0.000159,2]
[361287962,1747426231637,-166.31,0.00015998,2]
[361287963,1747426231647,-122.91284168,0.00015999,2]
[361288011,1747426237512,-456.91084622,0.00015999,2]
[361288012,1747426237736,-620.1763121,0.00015999,2]
[361288013,1747426237745,-13807.53016318,0.00016,2]
[361288014,1747426237754,-5941.0,0.00016106,2]
[361288015,1747426237764,-1148.0,0.00016106,2]
[361288016,1747426237773,-2275.87508453,0.00016107,2]
[361288017,1747426237785,-2275.87508453,0.00016314,2]
[361288018,1747426237794,-864.05076374,0.00016314,2]
[361288019,1747426237803,-6822.0,0.00016315,2]
[361288020,1747426237813,-4037.0,0.00016315,2]
[361288021,1747426237823,-154.0,0.00016315,2]
[361288022,1747426237832,-879.0,0.00016315,2]
[361288023,1747426237841,-838.0,0.00016315,2]
[361288024,1747426237851,-750.0,0.00016318,2]
[361288025,1747426237862,-207.4,0.00016328,2]
[361288026,1747426237872,-550.0,0.00016337,2]
[361288031,1747426238240,-176.03075843,0.00016338,2]
[361288032,1747426238279,-179.75377741,0.00016338,2]
[361288033,1747426238289,-10428.09019686,0.00016338,2]
[361288034,1747426239645,-519.75,0.00016338,2]
[361288035,1747426239750,-1922.41917234,0.00016338,2]
[361288036,1747426239760,-12524.95722949,0.00016338,2]
[361288037,1747426239771,-437.3243453,0.00016338,2]
[361288038,1747426239780,-1252.1763,0.00016338,2]
[361288039,1747426239793,-250.183,0.00016397,2]
[361288040,1747426239802,-150.181,0.00016397,2]
[361288041,1747426239811,-150.0,0.00016397,2]
[361288042,1747426239820,-150.0,0.00016397,2]
[361288043,1747426239830,-932.0,0.00016397,2]
[361288044,1747426239840,-1306.0,0.00016397,2]
[361288045,1747426239849,-629.0,0.00016397,2]
[361288046,1747426239860,-799.0,0.00016397,2]
[361288047,1747426239869,-1253.0,0.00016397,2]
[361288048,1747426239878,-584.0,0.00016397,2]
[361288049,1747426239888,-1458.0,0.00016397,2]
[361288050,1747426239897,-919.0,0.00016397,2]
[361288051,1747426239906,-553.0,0.00016397,2]
[361288052,1747426239916,-353.05,0.000164,2]
[361288053,1747426239925,-1223.0,0.000164,2]
[361288054,1747426239934,-1014.4375787,0.00016417,2]
[361288055,1747426239943,-750.0,0.00016418,2]
[361288056,1747426239952,-151.0,0.00016428,2]
[361288057,1747426239961,-599.60298507,0.00016428,2]
[361288058,1747426239970,-668.65185757,0.00016428,2]
[361288059,1747426239979,-406.28520916,0.00016428,2]
[361288060,1747426239988,-12870.2593692,0.00016429,2]
[361288061,1747426239998,-12524.95722948,0.00016429,2]
[361288062,1747426240008,-227.04,0.00016437,2]
[361288063,1747426240018,-1000.0,0.00016437,2]
[361288064,1747426240028,-1013.787,0.00016437,2]
[361288065,1747426240037,-396.96526372,0.00016438,2]
[361288066,1747426240046,-435513.63838066,0.00016438,2]
[361288067,1747426240056,-550.0,0.00016438,2]
[361288068,1747426240066,-151.0,0.00016438,2]
[361288069,1747426240077,-151.0,0.00016438,2]
[361288070,1747426240086,-192.611977,0.00016438,2]
[361288071,1747426240096,-159.827477,0.00016438,2]
[361288072,1747426240105,-248.044585,0.00016438,2]
[361288073,1747426240114,-151.0,0.00016438,2]
[361288074,1747426240123,-156.614648,0.00016438,2]
[361288075,1747426240132,-165.075122,0.00016438,2]
[361288076,1747426240141,-151.94828,0.00016438,2]
[361288077,1747426240151,-448.64373736,0.00016438,2]
[361288078,1747426240160,-229.18430392,0.00016438,2]
[361288079,1747426240170,-667.67,0.00016438,2]
[361288080,1747426240178,-167.924167,0.00016438,2]
[361288081,1747426240188,-400.0,0.00016438,2]
[361288082,1747426240197,-787.33,0.00016438,2]
[361288083,1747426240206,-400.0,0.00016438,2]
[361288084,1747426240216,-400.0,0.00016438,2]
[361288085,1747426240225,-400.0,0.00016438,2]
[361288086,1747426240234,-400.0,0.00016438,2]
[361288087,1747426240243,-400.0,0.00016438,2]
[361288088,1747426240253,-400.0,0.00016438,2]
[361288089,1747426240262,-400.0,0.00016438,2]
[361288090,1747426240272,-443.38,0.00016438,2]
[361288091,1747426240281,-400.0,0.00016438,2]
[361288092,1747426240291,-556.07,0.00016438,2]
[361288093,1747426240300,-400.0,0.00016438,2]
[361288094,1747426240309,-855.44,0.00016438,2]
[361288095,1747426240319,-400.0,0.00016438,2]
[361288096,1747426240328,-405.99714596,0.00016438,2]
[361288097,1747426240337,-474.12,0.00016438,2]
[361288098,1747426240346,-151.0,0.00016438,2]
[361288099,1747426240356,-476.67,0.00016438,2]
[361288100,1747426240365,-675.85,0.00016438,2]
[361288101,1747426240375,-400.0,0.00016438,2]
[361288102,1747426240385,-637.5,0.00016438,2]
[361288103,1747426240396,-400.0,0.00016438,2]
[361288104,1747426240405,-400.0,0.00016438,2]
[361288105,1747426240415,-929.35,0.00016438,2]
[361288106,1747426240424,-249.31310337,0.00016438,2]
[361288107,1747426240434,-400.0,0.00016438,2]
[361288108,1747426240443,-400.0,0.00016438,2]
[361288109,1747426240452,-226.68462827,0.00016438,2]
[361288110,1747426240462,-400.0,0.00016438,2]
[361288111,1747426240471,-790.8,0.00016438,2]
[361288112,1747426240480,-242.30879598,0.00016438,2]
[361288113,1747426240490,-500.0,0.00016438,2]
[361288114,1747426240499,-400.0,0.00016438,2]
[361288115,1747426240509,-500.0,0.00016438,2]
[361288116,1747426240518,-400.0,0.00016438,2]
[361288117,1747426240527,-400.0,0.00016438,2]
[361288118,1747426240536,-400.0,0.00016438,2]
[361288119,1747426240628,-400.0,0.00016438,2]
[361288120,1747426240637,-400.0,0.00016438,2]
[361288121,1747426240647,-502.44,0.00016438,2]
[361288122,1747426240656,-400.0,0.00016438,2]
[361288123,1747426240665,-650.43,0.00016438,2]
[361288124,1747426240674,-400.0,0.00016438,2]
[361288125,1747426240683,-952.98,0.00016438,2]
[361288126,1747426240693,-545.63,0.00016438,2]
[361288127,1747426240702,-400.0,0.00016438,2]
[361288128,1747426240711,-400.0,0.00016438,2]
[361288129,1747426240720,-549.15203656,0.00016438,2]
[361288130,1747426240729,-523.99659686,0.00016438,2]
[361288131,1747426240738,-400.0,0.00016438,2]
[361288132,1747426240748,-459.60157457,0.00016438,2]
[361288133,1747426240757,-400.0,0.00016438,2]
[361288134,1747426240766,-526.77,0.00016438,2]
[361288135,1747426240775,-400.0,0.00016438,2]
[361288136,1747426240790,-400.0,0.00016438,2]
[361288137,1747426240799,-159.25681685,0.00016438,2]
[361288138,1747426240808,-400.0,0.00016438,2]
[361288139,1747426240817,-657.97,0.00016438,2]
[361288140,1747426240827,-400.0,0.00016438,2]
[361288141,1747426240835,-556.89,0.00016438,2]
[361288142,1747426240845,-400.0,0.00016438,2]
[361288143,1747426240854,-1165.28,0.00016438,2]
[361288144,1747426240865,-400.0,0.00016438,2]
[361288145,1747426240874,-473.32,0.00016438,2]
[361288146,1747426240884,-400.0,0.00016438,2]
[361288147,1747426240893,-450.0,0.00016438,2]
[361288148,1747426240902,-450.0,0.00016438,2]
[361288149,1747426240911,-400.0,0.00016438,2]
[361288150,1747426240920,-450.0,0.00016438,2]
[361288151,1747426240929,-450.0,0.00016438,2]
[361288152,1747426240938,-400.0,0.00016438,2]
[361288153,1747426240947,-450.0,0.00016438,2]
[361288154,1747426240956,-235.31592644,0.00016438,2]
[361288155,1747426240965,-400.0,0.00016438,2]
[361288156,1747426240974,-278.30653615,0.00016438,2]
[361288157,1747426240983,-400.0,0.00016438,2]
[361288158,1747426240992,-450.0,0.00016438,2]
[361288159,1747426241001,-400.0,0.00016438,2]
[361288160,1747426241010,-792.76,0.00016438,2]
[361288161,1747426241019,-544.94,0.00016438,2]
[361288162,1747426241027,-400.0,0.00016438,2]
[361288163,1747426241036,-770.68,0.00016438,2]
[361288164,1747426241045,-400.0,0.00016438,2]
[361288165,1747426241054,-154.82236902,0.00016438,2]
[361288166,1747426241063,-400.0,0.00016438,2]
[361288167,1747426241072,-400.0,0.00016438,2]
[361288168,1747426241082,-615.12,0.00016438,2]
[361288169,1747426241091,-400.0,0.00016438,2]
[361288170,1747426241100,-359.0926593,0.00016438,2]
[361288171,1747426241109,-450.0,0.00016438,2]
[361288172,1747426241118,-1001.89816707,0.00016438,2]
[361288173,1747426241127,-450.0,0.00016438,2]
[361288174,1747426241136,-450.0,0.00016438,2]
[361288175,1747426241145,-633.58,0.00016438,2]
[361288176,1747426241155,-541.4667408,0.00016438,2]
[361288177,1747426241165,-400.0,0.00016438,2]
[361288178,1747426241174,-400.0,0.00016438,2]
[361288179,1747426241184,-450.0,0.00016438,2]
[361288180,1747426241193,-450.0,0.00016438,2]
[361288181,1747426241202,-450.0,0.00016438,2]
[361288182,1747426241212,-456.2356221,0.00016438,2]
[361288183,1747426241222,-400.0,0.00016438,2]
[361288184,1747426241231,-450.0,0.00016438,2]
[361288185,1747426241240,-400.0,0.00016438,2]
[361288186,1747426241250,-450.5945147,0.00016438,2]
[361288187,1747426241259,-151.0,0.00016438,2]
[361288188,1747426241268,-460.53,0.00016438,2]
[361288189,1747426241278,-400.0,0.00016438,2]
[361288190,1747426241287,-450.0,0.00016438,2]
[361288191,1747426241296,-157.30530073,0.00016438,2]
[361288192,1747426241306,-400.0,0.00016438,2]
[361288193,1747426241315,-400.0,0.00016438,2]
[361288194,1747426241325,-450.0,0.00016438,2]
[361288195,1747426241334,-450.0,0.00016438,2]
[361288196,1747426241344,-400.0,0.00016438,2]
[361288197,1747426241353,-160.62217387,0.00016438,2]
[361288198,1747426241361,-151.0,0.00016438,2]
[361288199,1747426241370,-400.0,0.00016438,2]
[361288200,1747426241379,-450.0,0.00016438,2]
[361288201,1747426241388,-523.1806734,0.00016438,2]
[361288202,1747426241397,-400.0,0.00016438,2]
[361288203,1747426241407,-400.0,0.00016438,2]
[361288204,1747426241416,-400.0,0.00016438,2]
[361288205,1747426241425,-620.19,0.00016438,2]
[361288206,1747426241435,-400.0,0.00016438,2]
[361288207,1747426241444,-906.77,0.00016438,2]
[361288208,1747426241453,-450.0,0.00016438,2]
[361288209,1747426241463,-450.0,0.00016438,2]
[361288210,1747426241472,-400.0,0.00016438,2]
[361288211,1747426241481,-450.0,0.00016438,2]
[361288212,1747426241491,-450.0,0.00016438,2]
[361288213,1747426241500,-400.0,0.00016438,2]
[361288214,1747426241509,-450.0,0.00016438,2]
[361288215,1747426241519,-400.0,0.00016438,2]
[361288216,1747426241528,-558.44,0.00016438,2]
[361288217,1747426241537,-400.0,0.00016438,2]
[361288218,1747426241547,-400.0,0.00016438,2]
[361288219,1747426241556,-450.0,0.00016438,2]
[361288220,1747426241566,-450.0,0.00016438,2]
[361288221,1747426241575,-450.0,0.00016438,2]
[361288222,1747426241585,-878.75,0.00016438,2]
[361288223,1747426241594,-450.0,0.00016438,2]
[361288224,1747426241603,-514.88,0.00016438,2]
[361288225,1747426241612,-450.0,0.00016438,2]
[361288226,1747426241621,-400.0,0.00016438,2]
[361288227,1747426241631,-450.0,0.00016438,2]
[361288228,1747426241641,-400.0,0.00016438,2]
[361288229,1747426241651,-450.0,0.00016438,2]
[361288230,1747426241661,-400.0,0.00016438,2]
[361288231,1747426241670,-400.0,0.00016438,2]
[361288232,1747426241679,-450.0,0.00016438,2]
[361288233,1747426241689,-427.66,0.00016438,2]
[361288234,1747426241698,-400.0,0.00016438,2]
[361288235,1747426241707,-1463.56,0.00016438,2]
[361288236,1747426241716,-812.74,0.00016438,2]
[361288237,1747426241725,-407.16,0.00016438,2]
[361288238,1747426241735,-400.0,0.00016438,2]
[361288239,1747426241743,-400.0,0.00016438,2]
[361288240,1747426241753,-400.0,0.00016438,2]
[361288241,1747426241764,-400.0,0.00016438,2]
[361288242,1747426241773,-450.0,0.00016438,2]
[361288243,1747426241785,-400.0,0.00016438,2]
[361288244,1747426241794,-400.0,0.00016438,2]
[361288245,1747426241803,-400.0,0.00016438,2]
[361288246,1747426241812,-400.0,0.00016438,2]
[361288247,1747426241822,-400.0,0.00016438,2]
[361288248,1747426241831,-400.0,0.00016438,2]
[361288249,1747426241841,-400.0,0.00016438,2]
[361288250,1747426241849,-450.0,0.00016438,2]
[361288251,1747426241862,-400.0,0.00016438,2]
[361288252,1747426241871,-489.73,0.00016438,2]
[361288253,1747426241880,-1026.75,0.00016438,2]
[361288254,1747426241889,-951.88,0.00016438,2]
[361288255,1747426241898,-512.08,0.00016438,2]
[361288256,1747426241907,-1323.21,0.00016438,2]
[361288257,1747426241916,-400.0,0.00016438,2]
[361288258,1747426241926,-500.0,0.00016438,2]
[361288259,1747426241935,-500.0,0.00016438,2]
[361288260,1747426241944,-400.0,0.00016438,2]
[361288261,1747426241953,-400.0,0.00016438,2]
[361288262,1747426241962,-527.12,0.00016438,2]
[361288263,1747426241972,-400.0,0.00016438,2]
[361288264,1747426241981,-1686.26,0.00016438,2]
[361288265,1747426241990,-400.0,0.00016438,2]
[361288266,1747426241999,-400.0,0.00016438,2]
[361288267,1747426242008,-400.0,0.00016438,2]
[361288268,1747426242017,-400.0,0.00016438,2]
[361288269,1747426242026,-400.0,0.00016438,2]
[361288270,1747426242035,-644.11,0.00016438,2]
[361288271,1747426242044,-400.0,0.00016438,2]
[361288272,1747426242053,-400.0,0.00016438,2]
[361288273,1747426242062,-400.0,0.00016438,2]
[361288274,1747426242072,-400.0,0.00016438,2]
[361288275,1747426242081,-445.94,0.00016438,2]
[361288276,1747426242090,-400.0,0.00016438,2]
[361288277,1747426242099,-400.0,0.00016438,2]
[361288278,1747426242108,-1651.13,0.00016438,2]
[361288279,1747426242117,-400.0,0.00016438,2]
[361288280,1747426242126,-2369.28,0.00016438,2]
[361288281,1747426242134,-400.0,0.00016438,2]
[361288282,1747426242143,-401.12,0.00016438,2]
[361288283,1747426242152,-1455.8,0.00016438,2]
[361288284,1747426242161,-400.0,0.00016438,2]
[361288285,1747426242169,-486.19,0.00016438,2]
[361288286,1747426242179,-454.02,0.00016438,2]
[361288287,1747426242187,-161.29932098,0.00016438,2]
[361288288,1747426242197,-686.36,0.00016438,2]
[361288289,1747426242205,-400.0,0.00016438,2]
[361288290,1747426242214,-673.39,0.00016438,2]
[361288291,1747426242223,-450.0,0.00016438,2]
[361288292,1747426242232,-738.79,0.00016438,2]
[361288293,1747426242241,-1130.85,0.00016438,2]
[361288294,1747426242250,-400.0,0.00016438,2]
[361288295,1747426242259,-400.0,0.00016438,2]
[361288296,1747426242268,-400.0,0.00016438,2]
[361288297,1747426242277,-400.0,0.00016438,2]
[361288298,1747426242287,-450.0,0.00016438,2]
[361288299,1747426242296,-450.0,0.00016438,2]
[361288300,1747426242305,-400.0,0.00016438,2]
[361288301,1747426242315,-400.0,0.00016438,2]
[361288302,1747426242325,-400.0,0.00016438,2]
[361288303,1747426242336,-1510.24,0.00016438,2]
[361288304,1747426242345,-286.39111034,0.00016438,2]
[361288305,1747426242355,-400.0,0.00016438,2]
[361288306,1747426242365,-400.0,0.00016438,2]
[361288307,1747426242374,-400.0,0.00016438,2]
[361288308,1747426242385,-449.8,0.00016438,2]
[361288309,1747426242395,-400.0,0.00016438,2]
[361288310,1747426242406,-400.0,0.00016438,2]
[361288311,1747426242416,-492.26,0.00016438,2]
[361288312,1747426242427,-655.53,0.00016438,2]
[361288313,1747426242438,-400.0,0.00016438,2]
[361288314,1747426242449,-499.94,0.00016438,2]
[361288315,1747426242459,-400.0,0.00016438,2]
[361288316,1747426242468,-832.45,0.00016438,2]
[361288317,1747426242477,-483.69,0.00016438,2]
[361288318,1747426242486,-523.68,0.00016438,2]
[361288319,1747426242495,-400.0,0.00016438,2]
[361288320,1747426242504,-790.02,0.00016438,2]
[361288322,1747426242513,-603.53,0.00016438,2]
[361288323,1747426242523,-535.3,0.00016438,2]
[361288324,1747426242532,-684.09,0.00016438,2]
[361288325,1747426242541,-450.0,0.00016438,2]
[361288326,1747426242550,-736.58,0.00016438,2]
[361288327,1747426242560,-412.79267871,0.00016438,2]
[361288328,1747426242569,-400.0,0.00016438,2]
[361288329,1747426242579,-450.0,0.00016438,2]
[361288330,1747426242587,-644.1,0.00016438,2]
[361288331,1747426242597,-474.64,0.00016438,2]
[361288332,1747426242606,-400.0,0.00016438,2]
[361288333,1747426242615,-431.98,0.00016438,2]
[361288334,1747426242624,-969.54,0.00016438,2]
[361288335,1747426242634,-412.67048341,0.00016438,2]
[361288336,1747426242643,-450.0,0.00016438,2]
[361288337,1747426242651,-400.0,0.00016438,2]
[361288338,1747426242660,-765.0,0.00016438,2]
[361288339,1747426242670,-400.0,0.00016438,2]
[361288340,1747426242679,-400.0,0.00016438,2]
[361288341,1747426242688,-621.57,0.00016438,2]
[361288342,1747426242697,-628.41,0.00016438,2]
[361288343,1747426242706,-1095.28,0.00016438,2]
[361288344,1747426242715,-400.0,0.00016438,2]
[361288345,1747426242724,-452.92375181,0.00016438,2]
[361288346,1747426242733,-400.0,0.00016438,2]
[361288347,1747426242742,-758.47,0.00016438,2]
[361288348,1747426242751,-353.79912346,0.00016438,2]
[361288349,1747426242760,-400.0,0.00016438,2]
[361288350,1747426242769,-1018.1,0.00016438,2]
[361288351,1747426242779,-400.0,0.00016438,2]
[361288352,1747426242793,-400.0,0.00016438,2]
[361288353,1747426242801,-400.0,0.00016438,2]
[361288354,1747426242811,-450.0,0.00016438,2]
[361288355,1747426242820,-400.0,0.00016438,2]
[361288356,1747426242830,-450.0,0.00016438,2]
[361288357,1747426242839,-346.33173303,0.00016438,2]
[361288358,1747426242848,-755.87,0.00016438,2]
[361288359,1747426242857,-1424.01,0.00016438,2]
[361288360,1747426242867,-450.0,0.00016438,2]
[361288361,1747426242877,-400.0,0.00016438,2]
[361288362,1747426242886,-412.49,0.00016438,2]
[361288363,1747426242895,-450.0,0.00016438,2]
[361288364,1747426242904,-993.57,0.00016438,2]
[361288365,1747426242913,-400.0,0.00016438,2]
[361288366,1747426242922,-400.0,0.00016438,2]
[361288367,1747426242931,-400.0,0.00016438,2]
[361288368,1747426242941,-400.0,0.00016438,2]
[361288369,1747426242950,-696.37,0.00016438,2]
[361288370,1747426242959,-400.0,0.00016438,2]
[361288371,1747426242968,-633.36,0.00016438,2]
[361288372,1747426242977,-400.0,0.00016438,2]
[361288373,1747426242986,-532.61,0.00016438,2]
[361288374,1747426242995,-583.4,0.00016438,2]
[361288375,1747426243004,-424.45,0.00016438,2]
[361288376,1747426243013,-176.39503761,0.00016438,2]
[361288377,1747426243023,-400.0,0.00016438,2]
[361288378,1747426243033,-151.0,0.00016438,2]
[361288379,1747426243043,-151.0,0.00016438,2]
[361288380,1747426243052,-400.0,0.00016438,2]
[361288381,1747426243061,-400.0,0.00016438,2]
[361288382,1747426243070,-469.6448385,0.00016438,2]
[361288383,1747426243079,-550.5,0.00016438,2]
[361288384,1747426243088,-400.0,0.00016438,2]
[361288386,1747426243097,-400.0,0.00016438,2]
[361288387,1747426243106,-450.0,0.00016438,2]
[361288388,1747426243115,-400.0,0.00016438,2]
[361288389,1747426243124,-624.39,0.00016438,2]
[361288390,1747426243133,-400.0,0.00016438,2]
[361288391,1747426243142,-450.0,0.00016438,2]
[361288392,1747426243151,-950.87,0.00016438,2]
[361288393,1747426243160,-464.94121186,0.00016438,2]
[361288394,1747426243168,-356.83,0.00016438,2]
[361288395,1747426243178,-1535.87,0.00016438,2]
[361288396,1747426243187,-1122.43,0.00016438,2]
[361288397,1747426243196,-400.0,0.00016438,2]
[361288398,1747426243205,-474.59,0.00016438,2]
[361288399,1747426243214,-400.0,0.00016438,2]
[361288400,1747426243223,-450.0,0.00016438,2]
[361288401,1747426243231,-166.67284615,0.00016438,2]
[361288402,1747426243240,-450.0,0.00016438,2]
[361288403,1747426243249,-400.0,0.00016438,2]
[361288404,1747426243259,-167.924167,0.00016438,2]
[361288405,1747426243267,-450.0,0.00016438,2]
[361288406,1747426243276,-1418.66,0.00016438,2]
[361288407,1747426243285,-400.0,0.00016438,2]
[361288408,1747426243294,-157.492123,0.00016438,2]
[361288409,1747426243303,-795.22,0.00016438,2]
[361288410,1747426243312,-400.0,0.00016438,2]
[361288411,1747426243322,-400.0,0.00016438,2]
[361288412,1747426243331,-467.67,0.00016438,2]
[361288413,1747426243340,-833.35,0.00016438,2]
[361288414,1747426243349,-400.0,0.00016438,2]
[361288415,1747426243358,-400.0,0.00016438,2]
[361288416,1747426243367,-450.0,0.00016438,2]